bitfinex/quotes_ETHUSD_20240711
["timestamp","ask_amount","ask_price","bid_price","bid_amount"]
[1720707968420,0.1156387,3147.1,3145.6,3.17902]
[1720707968604,3.1783,3146.4,3145.3,3.17925]
[1720707968805,3.17847,3146.2,3145.3,3.17925]
[1720707969332,1.10076478,3146.1,3144.9,3.17967]
[1720707969509,3.1789,3145.8,3144.7,3.497865]
[1720707969836,3.17865,3146.0,3144.9,3.17969]
[1720707970043,1.10083557,3145.9,3145.3,3.17931]
[1720707970334,0.4346387,3147.1,3145.6,3.17902]
[1720707970335,3.17808,3146.6,3145.6,3.17902]
[1720707970548,3.17808,3146.6,3144.7,3.17986]
[1720707970549,3.17824,3146.4,3144.7,3.17986]
[1720707970697,3.17869,3146.0,3144.8,0.317986]
[1720707971033,3.17869,3146.0,3145.1,3.17946]
[1720707971239,3.17913,3145.6,3144.6,3.17996]
[1720707971540,3.17894,3145.7,3144.8,3.17979]
[1720707971846,2.3938,3145.8,3144.7,3.17985]
[1720707971847,3.17904,3145.6,3144.7,3.17985]
[1720707972048,3.17925,3145.4,3143.8,3.019041]
[1720707972200,3.17904,3145.6,3144.7,3.17988]
[1720707972405,2.3938,3145.8,3145.1,3.17954]
[1720707972706,2.3938,3145.8,3144.6,3.18004]
[1720707972707,3.17824,3146.4,3144.6,3.18004]
[1720707973007,1.10078102,3146.3,3145.5,6.3582]
[1720707973212,5.45341,3146.7,3145.7,6.35786]
[1720707973408,5.45341,3146.7,3145.7,0.635786]
[1720707973409,1.10066797,3146.6,3145.7,0.635786]
[1720707973644,3.17814,3146.5,3145.8,3.17876]
[1720707973937,2.2754,3146.7,3145.8,3.1788]
[1720707974146,0.1156387,3147.1,3146.0,3.17861]
[1720707974436,0.1156387,3147.1,3146.1,3.17845]
[1720707974437,4.27824316,3147.0,3146.1,3.17845]
[1720707974620,3.18044,3144.3,3143.2,3.319]
[1720707974824,3.18044,3144.3,3142.7,1.64438229]
[1720707974825,3.18123,3143.5,3142.1,3.0]
[1720707975010,3.18123,3143.5,3140.6,1.30896228]
[1720707975011,3.26086867,3143.4,3141.4,2.2992]
[1720707975220,0.07955062,3143.8,3142.2,3.18239]
[1720707975398,3.18148,3143.2,3141.6,3.18307]
[1720707975617,3.18148,3143.2,3142.2,3.18247]
[1720707975843,3.1814,3143.3,3142.2,3.18247]
[1720707976009,3.18129,3143.4,3142.2,3.18247]
[1720707976214,0.07954001,3143.3,3142.3,0.318247]
[1720707976418,3.18157,3143.1,3142.1,3.1825]
[1720707976817,3.18187,3142.8,3141.6,3.18305]
[1720707977041,3.18158,3143.1,3141.9,3.18277]
[1720707977242,0.07954988,3143.4,3141.9,3.18277]
[1720707977243,3.18177,3142.9,3141.9,3.18277]
[1720707977544,3.26141992,3142.8,3141.6,3.18305]
[1720707977699,3.26141992,3142.8,3141.7,0.341297]
[1720707978038,0.07954992,3142.8,3141.7,0.341297]
[1720707978557,0.319,3143.5,3141.7,0.341297]
[1720707978558,3.18147,3143.2,3141.7,0.341297]
[1720707978845,3.18147,3143.2,3142.2,3.18241]
[1720707979199,3.18147,3143.2,3142.3,3.18236]
[1720707979406,3.18189,3142.8,3141.7,3.18295]
[1720707979603,3.18129,3143.4,3142.0,3.18268]
[1720707979812,3.18137,3143.3,3142.2,3.18238]
[1720707980042,3.18149,3143.2,3142.3,0.318238]
[1720707980480,2.4401,3143.6,3141.4,3.18322]
[1720707980481,0.07954054,3143.1,3141.4,3.18322]
[1720707980755,2.7591,3143.6,3141.4,3.18322]
[1720707980756,3.1815,3143.2,3142.1,3.18257]
[1720707981042,3.18167,3143.0,3142.1,3.18257]
[1720707981204,3.40123439,3143.6,3141.6,3.0]
[1720707981400,3.044,3144.2,3142.8,3.1818]
[1720707981401,3.49966,3144.0,3142.8,3.1818]
[1720707981602,2.95353439,3144.3,3143.3,3.18134]
[1720707981800,2.95353439,3144.3,3142.3,2.4902]
[1720707981801,2.3114,3144.3,3143.0,3.18163]
[1720707982006,3.18134,3143.4,3141.7,0.618313]
[1720707982237,3.18109,3143.6,3142.5,3.1821]
[1720707982449,3.18117,3143.5,3142.6,3.18206]
[1720707982742,3.18099,3143.7,3142.6,3.18206]
[1720707983072,0.319,3144.0,3143.0,3.18165]
[1720707983281,6.13396439,3144.3,3143.3,3.18134]
[1720707983282,2.3114,3144.3,3143.3,3.18134]
[1720707983566,2.3114,3144.3,3142.7,3.18195]
[1720707983567,3.17993,3144.8,3143.6,3.18098]
[1720707983788,0.319,3144.9,3144.2,3.18042]
[1720707983944,3.17946,3145.2,3144.2,3.18042]
[1720707984158,2.4353,3143.6,3142.0,3.83712114]
[1720707984467,2.4353,3143.6,3141.7,1.92727528]
[1720707984468,1.88400911,3143.5,3142.5,1.59]
[1720707984634,1.48516798,3143.4,3142.5,1.59]
[1720707984988,0.84303359,3143.4,3142.5,1.59]
[1720707985147,0.96113439,3143.5,3142.5,1.59]
[1720707985148,3.18164,3143.1,3142.5,1.59]
[1720707985348,3.50016,3143.5,3142.0,3.18266]
[1720707985680,3.50016,3143.5,3140.7,2.3884]
[1720707985681,3.1822,3142.5,3140.7,2.3884]
[1720707985972,1.49095338,3143.4,3140.8,3.18384]
[1720707985973,0.07956046,3142.4,3140.8,3.18384]
[1720707986177,3.18277,3142.0,3140.9,0.557224]
[1720707986536,3.18306,3141.7,3140.9,0.557224]
[1720707986734,3.18306,3141.7,3140.5,3.18411]
[1720707986735,3.183,3141.7,3140.5,3.18411]
[1720707986967,3.26235407,3142.0,3140.4,3.18429]
[1720707987165,3.18338,3141.4,3140.4,3.18429]
[1720707987543,1.29019737,3142.2,3140.7,3.1839]
[1720707987544,3.18289,3141.8,3140.7,3.1839]
[1720707987749,3.18269,3142.0,3140.0,2.279]
[1720707987975,2.98156491,3142.4,3140.9,3.18372]
[1720707987976,3.18279,3141.9,3140.9,3.18372]
[1720707988281,3.18279,3141.9,3140.1,2.346375]
[1720707988282,3.18312,3141.6,3140.6,3.18409]
[1720707988578,3.18312,3141.6,3140.1,0.846375]
[1720707988579,3.18329,3141.4,3140.1,0.846375]
[1720707988747,0.319,3142.2,3140.0,2.279]
[1720707988748,3.18291,3141.8,3140.0,2.279]
[1720707988954,0.319,3142.2,3140.8,3.1839]
[1720707989132,3.18259,3142.1,3141.1,3.18358]
[1720707989335,3.18268,3142.0,3141.1,3.18358]
[1720707989633,3.18201,3142.7,3140.4,3.18428]
[1720707989634,0.64707078,3143.3,3142.7,3.18188]
[1720707989854,0.07952961,3144.0,3142.9,3.18169]
[1720707990032,3.82713078,3144.6,3142.7,3.18195]
[1720707990033,3.18086,3143.9,3142.7,3.18195]
[1720707990350,3.18078,3143.9,3143.0,3.18166]
[1720707990778,3.18029,3144.4,3141.5,1.5]
[1720707990975,3.18029,3144.4,3141.4,2.4655]
[1720707990976,2.4581,3144.9,3143.4,3.1812]
[1720707991200,3.18073,3144.0,3142.5,2.2594]
[1720707991386,3.18048,3144.2,3142.5,2.2594]
[1720707991593,3.17992,3144.8,3143.6,3.18097]
[1720707991793,3.17992,3144.8,3142.5,2.2594]
[1720707991794,0.16026161,3144.7,3143.9,3.18074]
[1720707991968,5.63794,3144.9,3143.9,3.18074]
[1720707992302,5.63794,3144.9,3143.7,3.18095]
[1720707992303,3.18011,3144.6,3143.7,3.18095]
[1720707992602,3.18027,3144.4,3143.5,3.18114]
[1720707992818,6.35981,3144.8,3143.7,3.18096]
[1720707992966,2.4581,3144.9,3143.9,3.18068]
[1720707993173,3.17995,3144.7,3143.5,3.18112]
[1720707993396,3.18017,3144.5,3142.8,3.18187]
[1720707993776,2.4581,3144.9,3143.8,3.18085]
[1720707994064,2.4581,3144.9,3143.8,3.18083]
[1720707994264,2.4581,3144.9,3144.1,3.18049]
[1720707994662,5.63786,3144.9,3143.9,3.18069]
[1720707994861,2.53760212,3144.9,3143.7,3.18094]
[1720707995126,2.4581,3144.9,3143.8,3.18085]
[1720707995296,3.17991,3144.8,3143.8,3.18085]
[1720707995721,3.17991,3144.8,3143.7,3.18094]
[1720707995722,3.18006,3144.6,3143.7,3.18094]
[1720707995929,3.18006,3144.6,3143.5,3.18115]
[1720707995930,3.18026,3144.4,3143.6,3.18105]
[1720707996130,0.07951451,3144.3,3142.5,2.2594]
[1720707996286,3.18015,3144.5,3143.7,3.18095]
[1720707996487,3.18025,3144.4,3143.5,3.18109]
[1720707996689,3.18025,3144.4,3143.0,3.18163]
[1720707996690,3.18019,3144.5,3143.6,3.18106]
[1720707996993,3.18021,3144.5,3143.7,3.18094]
[1720707997230,2.4581,3144.9,3143.8,3.18082]
[1720707997520,2.4581,3144.9,3143.9,3.18076]
[1720707997521,3.17996,3144.7,3143.9,3.18076]
[1720707997695,2.4581,3144.9,3144.0,3.18062]
[1720707998092,2.4581,3144.9,3144.1,3.18055]
[1720707998330,0.319,3145.1,3144.1,3.18055]
[1720707998623,2.4465,3145.5,3144.6,3.17998]
[1720707998920,5.62564,3145.5,3144.6,3.17998]
[1720707999297,2.4465,3145.5,3144.7,3.17994]
[1720707999499,3.17876,3145.9,3145.1,3.17954]
[1720707999705,3.17876,3145.9,3144.1,0.636117]
[1720707999706,0.1156387,3147.1,3146.8,3.17779]
[1720707999902,0.1156387,3147.1,3145.4,3.17917]
[1720707999903,2.4147,3147.0,3145.4,3.17917]
[1720708000106,2.4147,3147.0,3145.2,0.317954]
[1720708000107,2.49415844,3147.0,3145.2,0.317954]
[1720708000317,2.49415844,3147.0,3145.2,3.17936]
[1720708000318,3.17805,3146.6,3145.2,3.17936]
[1720708000485,0.07947323,3146.5,3145.3,3.17933]
[1720708000686,0.0794727,3146.4,3144.3,3.18032]
[1720708000912,0.0794727,3146.4,3144.1,2.899717]
[1720708000913,3.17853,3146.2,3144.4,3.18024]
[1720708001095,0.72775973,3146.9,3144.4,3.18024]
[1720708001096,3.17828,3146.4,3145.1,3.17946]
[1720708001440,3.17828,3146.4,3144.4,3.18024]
[1720708001441,3.25773372,3146.4,3145.3,3.17933]
[1720708001738,3.25773372,3146.4,3144.6,3.18002]
[1720708001739,0.07947372,3146.4,3145.1,3.17949]
[1720708002028,3.17861,3146.1,3145.1,3.17952]
[1720708002212,3.17824,3146.4,3145.1,3.17944]
[1720708002397,3.17834,3146.3,3145.3,3.17933]
[1720708002597,3.17857,3146.1,3145.1,3.17944]
[1720708002794,0.07947919,3146.2,3145.3,3.17932]
[1720708003002,0.32578177,3146.3,3145.3,3.17932]
[1720708003210,0.32578177,3146.3,3145.4,3.1792]
[1720708003409,3.17854,3146.1,3144.1,2.899717]
[1720708003593,0.07948369,3146.0,3145.0,3.17957]
[1720708003800,3.25815369,3146.0,3145.0,3.17957]
[1720708004024,3.17884,3145.8,3144.6,3.17996]
[1720708004193,0.07948982,3145.7,3144.6,3.17996]
[1720708004391,0.07948982,3145.7,3144.4,3.18024]
[1720708004591,0.07948982,3145.7,3144.1,3.18046]
[1720708004592,0.56799498,3145.6,3144.1,3.18046]
[1720708004790,2.4216,3145.8,3144.2,3.18044]
[1720708004791,3.17936,3145.3,3144.2,3.18044]
[1720708005096,0.07950154,3145.2,3144.0,3.18063]
[1720708005299,3.17926,3145.4,3144.0,3.18063]
[1720708005646,3.17926,3145.4,3144.5,3.18015]
[1720708005647,3.17925,3145.4,3144.5,3.18015]
[1720708006020,5.60045,3145.8,3144.8,3.17984]
[1720708006353,2.4216,3145.8,3145.1,3.17954]
[1720708006512,2.4216,3145.8,3144.8,3.815818]
[1720708006513,0.07949127,3145.7,3144.8,3.815818]
[1720708006845,2.4216,3145.8,3145.0,3.17961]
[1720708007840,2.4216,3145.8,3145.1,3.17953]
[1720708008977,2.4216,3145.8,3144.8,3.17983]
[1720708009251,3.17891,3145.8,3144.0,3.044]
[1720708009458,3.17891,3145.8,3143.4,3.0]
[1720708009459,0.24216,3145.7,3144.8,3.17977]
[1720708009665,0.24216,3145.7,3145.0,3.17957]
[1720708009666,0.07948003,3145.7,3145.0,3.17957]
[1720708009864,2.3419,3146.4,3145.0,3.1796]
[1720708009865,0.07948524,3145.9,3145.0,3.1796]
[1720708010018,3.17852,3146.2,3145.3,3.17933]
[1720708010215,3.17834,3146.3,3145.3,3.17933]
[1720708010216,3.17854,3146.1,3145.3,3.17933]
[1720708010420,3.17882,3145.9,3144.9,3.17972]
[1720708010670,3.17884,3145.8,3144.9,3.17972]
[1720708010874,3.17915,3145.5,3144.5,3.18007]
[1720708011028,3.17915,3145.5,3144.7,3.17988]
[1720708011239,3.25867182,3145.5,3143.6,3.18105]
[1720708011474,3.25867182,3145.5,3142.6,2.93302249]
[1720708011475,0.07949182,3145.5,3145.4,3.17924]
[1720708011676,3.17836,3146.3,3145.5,3.17907]
[1720708011842,3.25774714,3146.4,3145.5,3.17907]
[1720708012037,0.319,3146.9,3144.8,3.17975]
[1720708012038,3.17866,3146.0,3144.8,3.17975]
[1720708012345,0.319,3146.9,3144.6,3.17997]
[1720708012346,2.38448093,3145.9,3144.6,3.17997]
[1720708012556,3.17905,3145.6,3144.8,3.17978]
[1720708012734,2.305,3145.9,3145.0,3.17958]
[1720708012933,5.48374,3145.9,3145.1,3.17954]
[1720708013389,0.64856247,3146.9,3145.2,3.044]
[1720708013592,0.64856247,3146.9,3146.0,3.17855]
[1720708013593,0.07944343,3146.9,3146.0,3.17855]
[1720708013875,3.17801,3146.7,3145.7,3.17892]
[1720708014072,3.25717343,3146.9,3145.8,3.17881]
[1720708014244,3.17764,3147.0,3146.0,3.17863]
[1720708014445,3.17776,3146.9,3145.7,0.317892]
[1720708014752,3.17764,3147.0,3146.0,6.3571]
[1720708014980,3.25720223,3146.9,3146.0,3.17855]
[1720708015476,0.1156387,3147.1,3146.2,3.17836]
[1720708015636,0.1156387,3147.1,3146.5,3.17811]
[1720708015832,0.1156387,3147.1,3145.4,3.044]
[1720708016039,0.1156387,3147.1,3145.1,2.4376]
[1720708016040,2.38865578,3147.0,3146.2,3.17838]
[1720708016236,2.38865578,3147.0,3146.3,3.17831]
[1720708016482,2.3092,3147.0,3146.3,6.35655]
[1720708016770,2.3092,3147.0,3146.3,3.17833]
[1720708016977,2.3092,3147.0,3145.5,0.622332]
[1720708016978,2.3092,3147.0,3146.2,3.17842]
[1720708017160,2.3092,3147.0,3146.0,3.17855]
[1720708017471,2.3092,3147.0,3146.3,3.17826]
[1720708017673,2.3092,3147.0,3146.1,3.17852]
[1720708017973,0.1156387,3147.1,3146.0,0.317855]
[1720708018137,0.1156387,3147.1,3146.4,3.17817]
[1720708018338,0.07944769,3147.0,3146.0,0.317855]
[1720708018540,0.07944769,3147.0,3145.5,0.622332]
[1720708018541,0.41670533,3147.0,3146.1,3.17852]
[1720708018975,3.59441533,3147.0,3145.9,3.17865]
[1720708019181,3.51496764,3147.0,3145.9,3.17865]
[1720708019686,3.17779,3146.9,3146.0,3.17856]
[1720708019973,3.2931787,3147.1,3146.0,3.17856]
[1720708019974,0.1156387,3147.1,3146.4,3.17815]
[1720708020363,0.1156387,3147.1,3146.3,3.1783]
[1720708020965,0.1156387,3147.1,3145.1,5.6171]
[1720708020966,0.1156387,3147.1,3145.6,3.17901]
[1720708021169,0.1156387,3147.1,3145.7,0.317901]
[1720708021367,0.1156387,3147.1,3146.4,3.17822]
[1720708021567,3.17765,3147.0,3146.2,3.17836]
[1720708021800,0.1156387,3147.1,3146.1,3.17844]
[1720708021999,0.1156387,3147.1,3146.8,3.17776]
[1720708022186,0.1156387,3147.1,3147.0,6.35524]
[1720708022389,0.1156387,3147.1,3147.0,3.813144]
[1720708022597,0.1156387,3147.1,3146.3,3.17826]
[1720708022774,0.07945244,3147.0,3145.9,3.1787]
[1720708022976,3.1781,3146.6,3144.9,3.044]
[1720708023205,3.1781,3146.6,3144.5,7.045]
[1720708023206,3.17837,3146.3,3144.5,2.375]
[1720708023419,0.07947281,3146.2,3144.6,0.2375]
[1720708023599,0.07947281,3146.2,3145.1,3.17951]
[1720708023783,0.07947281,3146.2,3145.1,3.17946]
[1720708023972,0.07947281,3146.2,3145.3,3.17933]
[1720708024169,0.07947281,3146.2,3144.9,3.17969]
[1720708024389,0.07947281,3146.2,3144.7,3.17988]
[1720708024390,0.07947281,3146.2,3145.3,3.17932]
[1720708024589,2.4872,3146.5,3145.1,3.17948]
[1720708024900,2.4872,3146.5,3145.0,0.317969]
[1720708024901,3.17842,3146.3,3145.4,3.17918]
[1720708025107,6.35684,3146.3,3145.4,3.17918]
[1720708025338,2.4872,3146.5,3145.7,3.17892]
[1720708025663,2.4872,3146.5,3145.8,3.496712]
[1720708025823,2.4872,3146.5,3145.8,0.317892]
[1720708026138,3.17834,3146.3,3145.5,3.17906]
[1720708026295,3.17834,3146.3,3145.3,3.17931]
[1720708026296,0.07947209,3146.2,3145.3,3.17931]
[1720708026602,0.07947209,3146.2,3145.0,0.317969]
[1720708026603,3.1788,3145.9,3145.0,0.317969]
[1720708026806,3.17908,3145.6,3144.8,3.17978]
[1720708027019,3.17879,3145.9,3145.0,3.17964]
[1720708027252,3.17905,3145.6,3144.6,0.2375]
[1720708027411,1.10102099,3145.5,3144.6,0.2375]
[1720708027603,4.28027357,3145.4,3144.6,0.2375]
[1720708027810,4.28027357,3145.4,3143.1,4.68154]
[1720708027811,0.07949679,3145.3,3144.2,3.18041]
[1720708028060,4.28053636,3145.2,3144.4,3.18022]
[1720708028348,3.17945,3145.2,3144.4,3.18022]
[1720708028709,3.17945,3145.2,3144.0,3.1806]
[1720708028950,1.10111746,3145.1,3144.3,3.18029]
[1720708029121,2.2645,3145.3,3144.5,3.18015]
[1720708029458,3.17885,3145.8,3144.8,3.17979]
[1720708029655,2.2931,3145.9,3145.0,3.17963]
[1720708029953,4.2797026,3145.8,3145.0,3.17963]
[1720708030256,2.2931,3146.6,3145.2,3.17937]
[1720708030424,1.10064153,3146.5,3145.8,6.3575]
[1720708030759,2.2931,3146.6,3145.8,3.17874]
[1720708030918,5.47113,3146.6,3145.8,3.17874]
[1720708031121,5.47113,3146.6,3145.6,3.17896]
[1720708031122,1.1005726,3146.5,3145.6,3.17896]
[1720708031360,1.10064067,3146.4,3145.6,3.17896]
[1720708031510,3.17854,3146.1,3144.7,3.17993]
[1720708031712,3.1789,3145.8,3144.9,3.1797]
[1720708031952,3.1789,3145.8,3144.8,0.622393]
[1720708031953,1.18030863,3145.7,3144.8,0.622393]
[1720708032147,0.07948341,3145.7,3144.8,3.802243]
[1720708032335,3.1788,3145.9,3144.8,3.802243]
[1720708032660,0.64937839,3146.5,3144.8,3.802243]
[1720708032661,2.2931,3146.6,3145.1,3.17951]
[1720708032836,2.2931,3146.6,3144.8,0.622393]
[1720708032837,2.2931,3146.6,3145.9,3.17864]
[1720708033043,1.1005866,3146.5,3145.2,3.497341]
[1720708033248,2.52785866,3147.0,3145.2,0.317951]
[1720708033552,2.52785866,3147.0,3145.2,3.17942]
[1720708033553,3.17861,3146.1,3145.2,3.17942]
[1720708033850,3.17897,3145.7,3144.3,0.318029]
[1720708034017,2.3443,3145.9,3144.1,3.18049]
[1720708034218,3.17891,3145.8,3145.0,3.17959]
[1720708034442,2.3443,3145.9,3143.9,1.5]
[1720708034443,3.17925,3145.4,3144.3,3.18027]
[1720708034627,3.17908,3145.6,3144.5,3.18009]
[1720708034825,1.10103292,3145.5,3144.6,3.17997]
[1720708035050,3.17934,3145.4,3144.4,3.1802]
[1720708035352,3.8299177,3145.6,3144.6,3.17998]
[1720708035562,4.28013876,3145.5,3144.6,6.35995]
[1720708035761,0.6508477,3145.6,3144.8,3.17984]
[1720708035922,3.8297077,3145.8,3144.5,0.31802]
[1720708036269,3.17924,3145.4,3144.5,0.31802]
[1720708036431,4.76965257,3145.3,3144.4,3.18022]
[1720708036632,1.10108305,3145.2,3144.4,3.18022]
[1720708036850,3.17942,3145.3,3144.5,3.18014]
[1720708037026,3.8300877,3145.5,3144.6,3.18004]
[1720708037363,3.17923,3145.5,3144.6,3.18004]
[1720708037568,0.65265242,3145.8,3145.0,3.17956]
[1720708037724,3.83183242,3145.5,3144.6,3.17999]
[1720708037920,3.17936,3145.3,3144.5,3.18009]
[1720708038316,0.05532162,3145.2,3144.5,3.18009]
[1720708038751,0.05532162,3145.2,3144.4,6.36033]
[1720708039052,3.83201242,3145.3,3144.6,3.18004]
[1720708039357,3.83201242,3145.3,3144.4,3.816183]
[1720708039358,0.65265242,3145.5,3144.8,3.17982]
[1720708039598,0.65265242,3145.6,3145.0,3.17959]
[1720708039878,0.65265242,3145.3,3144.6,3.18004]
[1720708040080,3.83190242,3145.4,3144.6,3.18004]
[1720708040243,3.83190242,3145.4,3144.8,3.17978]
[1720708040244,0.05532032,3145.3,3144.8,3.17978]
[1720708040444,0.05532032,3145.3,3143.5,1.5]
[1720708040445,0.65265242,3145.6,3144.6,3.17996]
[1720708040694,0.65265242,3145.8,3145.3,3.17924]
[1720708040983,1.30530484,3146.1,3144.7,0.317996]
[1720708040984,0.65265242,3146.1,3144.8,2.3829]
[1720708041183,2.4655,3146.8,3145.9,3.17873]
[1720708041184,0.65265242,3146.4,3145.9,3.17873]
[1720708041349,0.97897863,3146.5,3145.9,3.17873]
[1720708041350,0.65265242,3146.5,3145.9,3.17873]
[1720708041546,0.97897863,3146.6,3145.2,3.17935]
[1720708041547,0.65265242,3146.4,3145.6,3.17898]
[1720708041748,0.65265242,3146.4,3145.8,6.35755]
[1720708041952,0.65265242,3146.5,3145.9,3.17869]
[1720708042347,0.65265242,3146.5,3145.7,3.17886]
[1720708042590,0.97897863,3146.6,3145.2,3.17943]
[1720708042591,3.83099242,3146.3,3145.2,3.17943]
[1720708042887,3.83145242,3145.9,3145.0,3.17956]
[1720708043207,0.65265242,3146.0,3145.4,3.17922]
[1720708043485,0.65265242,3146.0,3145.1,0.317956]
[1720708043781,0.65265242,3146.0,3144.2,2.2976]
[1720708043782,0.65437729,3146.0,3145.7,3.17894]
[1720708044152,0.65437729,3146.0,3144.9,3.17974]
[1720708044346,0.65437729,3146.0,3145.5,3.17913]
[1720708044550,0.65437729,3146.1,3145.5,3.17913]
[1720708044780,0.98156594,3146.3,3145.3,3.17925]
[1720708044781,1.14449493,3146.0,3145.3,3.17925]
[1720708045087,0.05530417,3145.9,3145.5,3.17913]
[1720708045254,1.14445933,3145.9,3145.3,3.17925]
[1720708045590,0.05530417,3145.8,3145.3,3.17925]
[1720708045811,0.65437729,3145.9,3145.4,3.17918]
[1720708045968,0.65437729,3146.0,3145.4,0.635843]
[1720708046283,0.65437729,3146.0,3144.5,3.18008]
[1720708046284,0.65437729,3145.9,3145.5,6.35818]
[1720708046607,0.65437729,3146.0,3145.7,3.17886]
[1720708046768,1.14466863,3145.9,3145.7,3.17886]
[1720708046973,0.05530627,3145.8,3145.7,3.17886]
[1720708047209,0.05530324,3145.8,3145.7,3.17886]
[1720708047379,0.65437729,3145.9,3145.8,3.17884]
[1720708047586,0.65437729,3146.2,3145.8,6.35758]
[1720708047988,1.14440646,3146.2,3145.8,6.35758]
[1720708048319,0.05529996,3146.1,3145.8,6.35758]
[1720708048517,0.65437729,3146.2,3145.8,3.17874]
[1720708048674,0.48967777,3146.1,3145.8,3.17874]
[1720708049004,0.65437729,3146.3,3146.0,3.17863]
[1720708049507,0.65437729,3146.3,3145.8,3.17874]
[1720708049508,1.088712,3146.2,3145.8,3.17874]
[1720708049718,0.05529717,3146.1,3146.0,3.17863]
[1720708050005,0.65437729,3146.2,3146.1,6.35706]
[1720708050209,0.1156387,3147.1,3146.6,3.17803]
[1720708050210,0.65437729,3146.8,3146.6,3.17803]
[1720708050427,0.77001599,3147.1,3146.6,3.17795]
[1720708050571,0.77001599,3147.1,3146.5,3.17806]
[1720708050572,0.49007695,3147.0,3146.5,3.17806]
[1720708050798,0.49007695,3147.0,3146.5,3.17804]
[1720708050799,1.14445424,3146.9,3146.5,3.17804]
[1720708050996,0.1156387,3147.1,3146.7,3.17786]
[1720708050997,0.77001599,3147.1,3146.7,3.17786]
[1720708051234,0.77001599,3147.1,3147.0,3.17762]
[1720708051235,0.1156387,3147.1,3147.0,3.17762]
[1720708051901,0.17091671,3147.1,3146.9,3.17769]
[1720708052094,0.1156387,3147.1,3146.9,3.17769]
[1720708052916,0.1156387,3147.1,3146.9,6.35533]
[1720708053097,0.1156387,3147.1,3147.0,6.35524]
[1720708053810,0.1156387,3147.1,3147.0,3.17762]
[1720708054632,0.1156387,3147.1,3146.5,0.317806]
[1720708054837,0.1156387,3147.1,3146.6,3.17802]
[1720708055139,0.1156387,3147.1,3147.0,3.17762]
[1720708055544,0.1156387,3147.1,3147.0,6.35524]
[1720708057616,0.1156387,3147.1,3146.4,3.17817]
[1720708057817,0.1156387,3147.1,3146.7,3.17787]
[1720708058032,0.1156387,3147.1,3146.1,2.984]
[1720708058369,0.1156387,3147.1,3146.9,3.17765]
[1720708058571,0.1156387,3147.1,3146.9,6.35532]
[1720708058780,0.1156387,3147.1,3146.7,3.17787]
[1720708059140,0.1156387,3147.1,3146.5,6.35616]
[1720708059339,0.1156387,3147.1,3146.6,3.17797]
[1720708059575,0.1156387,3147.1,3146.7,3.17792]
[1720708059751,0.1156387,3147.1,3146.8,3.17775]
[1720708059937,0.1156387,3147.1,3146.7,3.495712]
[1720708059938,0.1156387,3147.1,3146.7,0.317792]
[1720708060143,0.1156387,3147.1,3146.2,3.17835]
[1720708060344,0.1156387,3147.1,3147.0,1.001]
[1720708060857,1.42437097,3147.1,3145.8,3.17878]
[1720708061058,1.42437097,3147.1,3144.9,2.984]
[1720708061059,3.17815,3146.5,3145.6,3.17901]
[1720708061279,3.17815,3146.5,3145.7,3.17891]
[1720708061471,0.65437311,3146.6,3145.9,3.17867]
[1720708061645,3.17804,3146.6,3145.7,3.814652]
[1720708061850,3.17804,3146.6,3145.9,3.17873]
[1720708061851,0.65437311,3146.6,3145.9,3.17873]
[1720708062162,0.65437311,3146.8,3145.9,3.17873]
[1720708062360,0.98155967,3146.9,3146.1,3.17851]
[1720708062361,0.65437311,3146.9,3146.1,3.17851]
[1720708062577,0.65437311,3146.9,3146.2,3.17836]
[1720708062979,0.65437311,3146.9,3146.1,3.17851]
[1720708063150,0.65437311,3146.8,3146.1,3.17851]
[1720708063353,1.90563915,3146.9,3146.3,3.17833]
[1720708063354,0.65437311,3146.9,3146.3,3.17833]
[1720708063554,0.65437311,3147.0,3146.0,3.17861]
[1720708063853,0.65437311,3147.0,3145.7,3.17886]
[1720708063854,3.17814,3146.5,3145.7,3.17886]
[1720708064053,0.65437311,3146.6,3145.9,3.1787]
[1720708064262,0.98155967,3146.7,3144.8,6.16381]
[1720708064263,3.83231311,3146.7,3145.8,3.17878]
[1720708064477,1.04641777,3146.6,3145.8,3.17878]
[1720708064869,0.65437311,3146.6,3145.8,3.17877]
[1720708065195,0.65437311,3146.6,3146.1,3.17853]
[1720708065196,1.04657428,3146.6,3146.1,3.17853]
[1720708065489,1.30873227,3146.9,3146.6,3.17801]
[1720708065490,0.65437311,3146.9,3146.6,3.17801]
[1720708065676,1.09719837,3147.1,3146.0,3.1786]
[1720708065677,3.2931987,3147.1,3146.2,3.17838]
[1720708065885,3.2931987,3147.1,3145.8,3.17878]
[1720708065886,1.04673402,3147.0,3145.8,3.17878]
[1720708066087,3.83217311,3146.9,3146.0,3.17862]
[1720708066293,4.36434635,3146.9,3146.0,3.17862]
[1720708066467,4.22481834,3146.8,3146.0,3.17856]
[1720708066666,0.98155967,3147.0,3146.1,3.17847]
[1720708066667,0.65437311,3147.0,3146.1,3.17847]
[1720708066973,0.65437311,3147.0,3146.3,6.35655]
[1720708066974,1.04674279,3147.0,3146.3,6.35655]
[1720708067179,0.77001181,3147.1,3146.3,3.17827]
[1720708067378,0.77001181,3147.1,3145.2,0.55]
[1720708067582,0.77001181,3147.1,3146.6,3.17802]
[1720708067908,0.1156387,3147.1,3146.6,6.35596]
[1720708068122,0.1156387,3147.1,3146.4,3.1782]
[1720708068276,0.1156387,3147.1,3145.6,3.17898]
[1720708068277,0.1156387,3147.1,3145.7,3.17888]
[1720708068480,3.17789,3146.8,3146.0,3.17859]
[1720708068681,3.17809,3146.6,3145.4,3.17921]
[1720708069004,3.17849,3146.2,3145.3,3.17932]
[1720708069320,3.17874,3145.9,3144.4,10.4702]
[1720708069643,0.65437311,3146.0,3145.1,3.17953]
[1720708069799,3.17874,3145.9,3145.1,3.17953]